Cogmind - Beta 16.1 --- EXPLORER MODE // 2026.04.20 @ 13:50:36 Player: Kabu Result: Smashed by cave-in Performance ------------- Evolutions (0) 0 Regions Visited (3) 600 Robots Destroyed (11) 55 Value Destroyed (432) 432 Prototype IDs (0) 0 Alien Tech Used (0) 0 Bonus (0) 0 TOTAL SCORE: 1087 Bonus ------- None Cogmind --------- Core Integrity 0/250 Matter 148/300 Energy 97/100 System Corruption 4% Temperature Cool (2) Movement Walking (120) Location -10/Subcaves Parts ------- > --- POWER (1) -------- (None) > --- PROPULSION (2) --- Myomer Leg > --- UTILITY (3) ------ Core Shielding > --- WEAPON (2) ------- (None) > --- INVENTORY (5) ---- Hover Unit Seismic Detector Bore Cannon Peak State ------------ > --- POWER ------------ Light Ion Engine > --- PROPULSION ------- Myomer Leg Myomer Leg > --- UTILITY ---------- Sensor Array Signal Interpreter Core Shielding > --- WEAPON ----------- Light Assault Rifle Datajack > --- INVENTORY -------- Hover Unit Seismic Detector Bore Cannon Grenade Launcher Rocket Launcher [Rating: 21] Favorites ----------- Power Light Ion Engine Engine Light Ion Engine Propulsion Aluminum Leg Leg Aluminum Leg Utility Core Shielding Device Sensor Array Processor Signal Interpreter Protection Core Shielding Weapon Light Assault Rifle Ballistic Gun Light Assault Rifle Launcher Grenade Launcher Special Melee Weapon Datajack Build | -11 -10 -10 -10 ------- Run | Yrd Mat Min Sub Slots Evolved 1 | . 1 . . Power . | . . . . Propulsion . | . . . . Utility 1 | . 1 . . Weapon . | . . . . Parts Attached 15 | 6 6 1 2 Power 1 | 1 . . . Engine 1 | 1 . . . Core . | . . . . Reactor . | . . . . Propulsion 4 | 2 . . 2 Treads . | . . . . Leg 4 | 2 . . 2 Wheel . | . . . . Hover . | . . . . Flight . | . . . . Utility 6 | 2 4 . . Device 3 | . 3 . . Storage . | . . . . Processor 2 | 1 1 . . Hackware . | . . . . Protection 1 | 1 . . . Artifact . | . . . . Weapon 4 | 1 2 1 . Energy Gun . | . . . . Energy Cannon . | . . . . Ballistic Gun 1 | 1 . . . Ballistic Cannon . | . . . . Launcher 2 | . 1 1 . Special Weapon . | . . . . Impact Weapon . | . . . . Slashing Weapon . | . . . . Piercing Weapon . | . . . . Special Melee Weapon 1 | . 1 . . Unidentified Prototypes . | . . . . Parts Lost 7 | . . . 7 Power 1 | . . . 1 Propulsion 1 | . . . 1 Utility 2 | . . . 2 Weapon 3 | . . . 3 Highest Loss Streak 3 | . . . 3 To Critical Strikes 1 | . . . 1 Average Backups 2 | . . 3 4 Power . | . . . . Propulsion . | . . 1 1 Utility . | . . 1 1 Weapon 1 | . . 1 2 Tool/Special . | . . . . Unused Backups 3 | 1 . . 2 Power . | . . . . Propulsion 1 | . . . 1 Utility 1 | 1 . . . Weapon 1 | . . . 1 Tool/Special . | . . . . Average Slot Usage (%) 97 | . 99 100 93 Engine 11 | . 12 12 10 Leg 24 | . 25 25 24 Device 11 | . 11 12 10 Processor 12 | . 12 12 11 Protection 11 | . 11 12 12 Ballistic Gun 10 | . 10 11 10 Launcher 1 | . 1 . 1 Special Melee Weapon 10 | . 11 12 9 Peak Build Rating 21 | 6 8 9 21 Average Rating 9 | 4 7 8 12 On Entrance 5 | . 6 8 8 Avg Prop Armor Cover (%) . | . . . . Naked Turns . | . . . . Heaviest Build 10 | 5 9 10 7 Greatest Support 50 | 20 20 20 50 Greatest Overweight (x) . | . . . . Average Overweight (x) . | . . . . Largest Inventory Capacity 5 | 5 5 5 5 Average Capacity 5 | 5 5 5 5 Most Carried 5 | 3 3 4 5 Average Carried 2 | . . 3 4 Final Capacity 5 | 5 5 5 5 Final Carried 4 | . 3 4 3 Class Distribution -------------------- 100% | Hacker-Mutant Dominant Class ---------------- Hacker-Mutant | -10/Materials Hacker-Mutant | -10/Mines Hacker-Mutant | -10/Subcaves Resources | -11 -10 -10 -10 ----------- Run | Yrd Mat Min Sub Matter Collected 475 | 245 51 145 34 Remotely . | . . . . Salvage Created 252 | . 51 46 155 Parts 14 | . 2 2 10 Haulers Intercepted . | . . . . Recyclers Shooed . | . . . . Parts Field Recycled . | . . . . Retrieved Matter . | . . . . Parts Self-Destructed . | . . . . Prevented . | . . . . Parts Restored . | . . . . Kills | -11 -10 -10 -10 ------- Run | Yrd Mat Min Sub Combat Hostiles Destroyed 10 | . 1 1 8 Guns 2 | . 1 . 1 AOE 8 | . . 1 7 Classes Destroyed 4 | . 2 . 2 Watcher 1 | . 1 . . Grunt 2 | . 1 1 . Sentry 1 | . . . 1 Subdweller 7 | . . . 7 Best Kill Streak 6 | . 1 1 6 Combat Bots Only 6 | . 1 1 6 Max Kills in Single Turn 3 | . 1 1 3 Gunslinging . | . . . . Exploded 3 | . . 1 3 Melee . | . . . . Uniques/NPCs Destroyed . | . . . . Combat | -11 -10 -10 -10 -------- Run | Yrd Mat Min Sub Hostile Shots Fired 53 | . 3 9 41 Missed 13 | . 1 2 10 Hits 40 | . 2 7 31 Projectile 40 | . 2 7 31 Critical Strikes 4 | . . 1 3 Damage Taken 905 | . 13 68 824 Core 261 | . 6 16 239 Absorbed by Shields . | . . . . Redirected to Shielding 48 | . 1 3 44 Ignored by Resistances 447 | . 9 39 399 Core Remaining (%) 100 | 100 . . . Volleys Fired 59 | . 28 6 25 Largest 1 | . 1 1 1 Hottest 33 | . 30 33 33 Shots Fired 59 | . 28 6 25 Gun 40 | . 25 5 10 Cannon . | . . . . Launcher 19 | . 3 1 15 Special . | . . . . Kinetic 40 | . 25 5 10 Thermal . | . . . . Explosive 19 | . 3 1 15 Electromagnetic . | . . . . Robot Hit Streak 26 | . 5 10 26 Robot Miss Streak 1 | . . . 1 Penetration Max . | . . . . Secondary Targets . | . . . . Shots Hit Robots 34 | . 6 5 23 Core Hits 26 | . 5 2 19 Critical Kills . | . . . . Critical Parts Destroyed . | . . . . Critical Strikes . | . . . . Melee Attacks 2 | . 2 . . Impact . | . . . . Slashing . | . . . . Piercing . | . . . . Sneak Attacks . | . . . . Combat Hostiles . | . . . . Follow-up Attacks . | . . . . Damage Inflicted 1371 | . 80 89 1202 Guns 148 | . 39 32 77 Cannons . | . . . . Explosions 1223 | . 41 57 1125 Melee . | . . . . Ramming . | . . . . Kinetic 148 | . 39 32 77 Thermal . | . . . . Explosive 1223 | . 41 57 1125 Electromagnetic . | . . . . Impact . | . . . . Slashing . | . . . . Piercing . | . . . . Highest Corruption 4 | . . . 4 Average Corruption 4 | . . . 4 Corruption Purged . | . . . . Corruption Blocked . | . . . . Overload Shots . | . . . . Overflow Damage 35 | . . . 35 Projectiles . | . . . . Explosions 35 | . . . 35 Melee . | . . . . Knockbacks . | . . . . Impact . | . . . . Kinetic . | . . . . Secondary . | . . . . Self-Inflicted Damage 280 | . . . 280 Shots 13 | . . . 13 Rammed . | . . . . Targets Rammed . | . . . . Kicked . | . . . . Crushed . | . . . . Highest Temperature 27 | . 6 27 . Average Temperature 14 | . 6 16 . Received Heat Transfer 246 | . 12 81 153 Siege Activations . | . . . . Martial Activations . | . . . . Shielding Activations . | . . . . Robots Disrupted . | . . . . Combat Hostiles . | . . . . Robots Corrupted . | . . . . Combat Hostiles . | . . . . Parts Fried . | . . . . Impact Corruptions . | . . . . Robots Melted . | . . . . Combat Hostiles . | . . . . Parts Melted . | . . . . Heat Transferred . | . . . . Parts Sabotaged . | . . . . Parts Stolen . | . . . . Parts Stripped . | . . . . Power Chain Reactions . | . . . . Alert | -11 -10 -10 -10 ------- Run | Yrd Mat Min Sub Maximum Alert Level . | . . . . Low Security (%) 100 | 100 100 100 . Level 1 . | . . . . Level 2 . | . . . . Level 3 . | . . . . Level 4 . | . . . . Level 5 . | . . . . High Security . | . . . . Max Security . | . . . . Peak Influence 58 | . 20 58 . Initial . | . . . . Average 3 | . 1 8 . Influence Increases 217 | . 94 103 20 Destroy 0b10 Robot/C 60 | . 20 20 20 Destroy 0b10 Robot/NC 5 | . 5 . . Destroy Leader 12 | . 2 10 . Trap Triggered on 0b10 30 | . 30 . . Disable Machine 4 | . 4 . . Destroy Structure 31 | . 18 13 . Lose Combat Pursuer 75 | . 15 60 . Influence Decreases 217 | . 94 90 33 Entered New Map 9 | . . . 9 Time Decay 208 | . 94 90 24 Squads Dispatched . | . . . . Investigation . | . . . . Extermination . | . . . . Reinforcement . | . . . . Assault . | . . . . Garrison . | . . . . Intercept . | . . . . Searches Triggered . | . . . . Construction Impeded . | . . . . Haulers Reinforced . | . . . . Active Scanning Responses . | . . . . Cargo Convoy Interrupts . | . . . . Stealth | -11 -10 -10 -10 --------- Run | Yrd Mat Min Sub Distress Signals . | . . . . Communications Jammed . | . . . . Distress Signals . | . . . . Times Spotted 20 | . 6 4 10 Peak Tracking Total 7 | . 3 2 7 Tactical Retreats 4 | . 1 3 . Traps | -11 -10 -10 -10 ------- Run | Yrd Mat Min Sub Traps Triggered . | . . . . Indirectly . | . . . . Trap Hack Attempts . | . . . . Triggered . | . . . . Disarmed . | . . . . Reprogrammed 3 | . 3 . . Reused 3 | . 3 . . Traps Extracted . | . . . . Installed . | . . . . Triggered 3 | . 3 . . Machines | -11 -10 -10 -10 ---------- Run | Yrd Mat Min Sub Machines Disabled 6 | . 1 . 5 Max in Single Turn 3 | . 1 . 3 Machines Repaired . | . . . . Machines Dismantled . | . . . . Machines Sabotaged . | . . . . Overloaded Fab Kills . | . . . . Hacking | -11 -10 -10 -10 --------- Run | Yrd Mat Min Sub Machines Accessed 7 | . 5 . 2 Terminals 3 | . 3 . . Fabricators . | . . . . Repair Stations . | . . . . Recycling Units 2 | . 2 . . Scanalyzers . | . . . . Garrison Access . | . . . . Total Hacks 12 | . 9 . 3 Successful 10 | . 7 . 3 Failed 2 | . 2 . . Catastrophic . | . . . . Database Lockouts . | . . . . Manual . | . . . . Terminals 7 | . 7 . . Fabricators . | . . . . Repair Stations . | . . . . Recycling Units 2 | . 2 . . Scanalyzers . | . . . . Garrison Access . | . . . . Terminal Hacks 8 | . 5 . 3 Record 1 | . . . 1 Open Door 1 | . . . 1 Emergency Access Points 2 | . 2 . . Locate Traps 1 | . 1 . . Reprogram Traps 1 | . 1 . . Dispatch Records 1 | . 1 . . Release Object 1 | . . . 1 Fabricator Hacks . | . . . . Repair Station Hacks . | . . . . Recycling Unit Hacks 2 | . 2 . . Report Inventory 2 | . 2 . . Scanalyzer . | . . . . Garrison Access Hacks . | . . . . Unauthorized Hacks . | . . . . Terminals . | . . . . Fabricators . | . . . . Repair Stations . | . . . . Recycling Units . | . . . . Scanalyzers . | . . . . Garrison Access . | . . . . Data Cores Recovered . | . . . . Used . | . . . . Hacking Detections 4 | . 4 . . Full Trace Events 1 | . 1 . . Feedback Events . | . . . . Feedback Blocked . | . . . . Robot Schematics Acquired . | . . . . Robots Built . | . . . . Authchips . | . . . . Time . | . . . . Total Robot Build Rating . | . . . . Part Schematics Acquired . | . . . . Parts Built . | . . . . Authchips . | . . . . Time . | . . . . Total Part Build Rating . | . . . . Part Studies Acquired . | . . . . Parts Repaired . | . . . . Time . | . . . . Parts Recycled . | . . . . Recycled Matter . | . . . . Retrieved Matter . | . . . . Retrieved Components . | . . . . Parts Scanalyzed . | . . . . Part Schematics Acquired . | . . . . Parts Damaged . | . . . . Bothacking | -11 -10 -10 -10 ------------ Run | Yrd Mat Min Sub Used RIF Installer . | . . . . Robots Hacked 1 | . 1 . . Non-combat 1 | . 1 . . Combat . | . . . . Robot Hacks Applied 1 | . 1 . . parse_system 1 | . 1 . . Relay Couplers Released . | . . . . Fabnet Peak Effective % . | . . . . Robots Rewired . | . . . . Allies Hacked . | . . . . Hacks Repelled . | . . . . Allies | -11 -10 -10 -10 -------- Run | Yrd Mat Min Sub Total Allies . | . . . . Largest Group . | . . . . Highest-Rated Group . | . . . . Highest-Rated Ally . | . . . . Total Orders . | . . . . Ally Attacks . | . . . . Total Damage . | . . . . Kills . | . . . . Allies Corrupted . | . . . . Allies Melted . | . . . . Intel | -11 -10 -10 -10 ------- Run | Yrd Mat Min Sub Active Infowar (turns) 1320 | . 608 347 365 Sensors 797 | . 85 347 365 Seismic 523 | . 523 . . Robot Analysis Total . | . . . . Derelict Logs Recovered 1 | . . 1 . Drone Launches . | . . . . Drone Recoveries . | . . . . Exploration | -11 -10 -10 -10 ------------- Run | Yrd Mat Min Sub Turns Passed 1432 | 59 626 347 400 Spaces Moved 816 | 43 337 272 164 Core 8 | 8 . . . Treads . | . . . . Legs 808 | 35 337 272 164 Wheels . | . . . . Hover . | . . . . Flight . | . . . . Fastest Speed 50 | 50 120 120 120 Average Speed 119 | 106 120 120 120 Slowest Speed 120 | 120 120 120 120 Overloaded Moves . | . . . . Propulsion Burnouts . | . . . . Robots Hopped . | . . . . Potential Cave-ins 11 | . . . 11 Cave-ins Triggered 2 | . . . 2 Exploration Rate (%) 36 | 4 63 64 15 Regions Visited 3 Branch Regions 2 Pre-discovered Areas 2 | . . 1 1 Known Exits Taken 3 | 1 1 1 . Unknown Exits Taken . | . . . . Scrap Searched . | . . . . Spaces Dug . | . . . . Terrain Destroyed 51 | . 17 14 20 Melee . | . . . . Projectile . | . . . . AOE 51 | . 17 14 20 Terrain Rammed . | . . . . Walls Destroyed . | . . . . Machines Disabled . | . . . . Actions | -11 -10 -10 -10 --------- Run | Yrd Mat Min Sub Total 1218 | 56 531 286 345 Wait 301 | . 147 6 148 Move 811 | 42 336 271 162 Hop . | . . . . Pick Up 17 | 7 7 1 2 Fast Attach . | . . . . Attach 10 | 6 2 . 2 Detach . | . . . . Swap 12 | . 8 2 2 Drop 5 | 1 1 . 3 Fire 59 | . 28 6 25 Melee 2 | . 2 . . Ram . | . . . . Kick . | . . . . Crush . | . . . . Escape Stasis 1 | . . . 1 Rewire . | . . . . Trap . | . . . . Miscellaneous . | . . . . Route ------- -11/Scrapyard -10/Materials (discovered 2 exits: *Mat / *Min) -10/Mines -10/Subcaves History --------- Turn | Location | Event 5 | -11/Scrapyard | Identified exit to Materials 5 | -11/Scrapyard | Discovered exit to Materials (range 15) 60 | -11/Scrapyard | Entered Materials 60 | -10/Materials | Evolved 1 slot: Utility x1 310 | -10/Materials | Build established: Hacker-Mutant 397 | -10/Materials | Identified exit to Materials 397 | -10/Materials | Discovered exit to Materials (range 14) 647 | -10/Materials | Identified exit to Mines 647 | -10/Materials | Discovered exit to Mines (range 9) 686 | -10/Materials | Entered Mines 728 | -10/Mines | Received a Rocket Launcher from a helpful Derelict 944 | -10/Mines | Learned location of Mines (-9) 1017 | -10/Mines | Identified exit to Subcaves 1017 | -10/Mines | Discovered exit to Subcaves (range 7) 1033 | -10/Mines | Entered Subcaves 1034 | -10/Subcaves | Approached by a straggling Scientist 1055 | -10/Subcaves | Learned location of Zion (-7) 1055 | -10/Subcaves | Met a Zionite searching for "candidates" 1247 | -10/Subcaves | A swath of the cavern ceiling suddenly collapsed 1321 | -10/Subcaves | Ambushed by swarm of Subdwellers 1382 | -10/Subcaves | Core integrity fell below 50% 1409 | -10/Subcaves | Core integrity fell below 20% 1429 | -10/Subcaves | Lost 3 parts (1p1u1w) 1429 | -10/Subcaves | Crushed by falling debris 1433 | -10/Subcaves | Crushed by falling debris 1433 | -10/Subcaves | Smashed by cave-in Last Messages --------------- 01384_ A6-GG9(R) affixes Scrap Shield Fragment to Scrap Shield. [Achievement: Let's See Who's Tougher] 01389_ Grenade Launcher destroyed. 01389_ Destroyed Grenade Launcher. 01391_ Dropped Lgt. Assault Rifle. 01398_ Destroyed Scrap Shield. 01398_ Sensor Array destroyed. 01398_ Destroyed Sensor Array. 01400_ A6-GG9(R) destroyed. 01421_ The unstable cave ceiling collapses. 01429_ Crushed by falling debris. [Achievement: Unlikely Earthworm] 01429_ Signal Interpreter destroyed. 01429_ System corrupted by crushing effect (+3). 01429_ Myomer Leg destroyed. 01429_ System corrupted by crushing effect (+1). 01433_ The unstable cave ceiling collapses. 01433_ Crushed by falling debris. 01433_ Rocket Launcher destroyed. Map ----- +----------------------------------------------------+ | ?????????????????????????????????????????????????? | | ?????????????????????????????????????????????????? | | ?????????????????????????????????????????????????? | | ?????????????????????????????????????????????????? | | ?????????????????????????????????????????????????? | | ?????????????????????????????????????????????????? | | ?????????????????????????????????????????????????? | | ?????????????????????????????????????????????????? | | ?????????????????????????????????????????????????? | | ?????????????????????????????????????????????????? | | ?????????????????????????????????????????????????? | | ?????????????????????????????????????????????????? | | ?????????????????????????????????????????????????? | | ?????????????????????????????????????????????????? | | ?????????????????????????????????????????????????? | | ?????????????????########????????????????????????? | | ?????????????????#""""""#????????????????????????? | | ?????????????????#" """"#????????????????????????? | | ?????????????????#" & #????????????????????????? | | ?????????????????#" #????????????????????????? | | ?????????????????#""""&&#????????????????????????? | | ?????????????????##### #####?????????????????????? | | ??????????????????## # #?????????????????????? | | ??????????????????#!% #?????????????????????? | | ?????????????????##= [ ## #?????????????????????? | | ?????????????????# @##?????????????????????? | | ????????????????### #??????????????????????? | | ??????????????### ### #??????????????????????? | | ?????????????## ###?????????????????????? | | ?????????????# ##????????????????????? | | ?????????????# #????????????????????? | | ?????????????## #????????????????????? | | ????????????##;## ###????????????????????? | | ????????????#"#?# ##?????????????????????? | | ????????????#""## #?????????????????????? | | ????????????# #?????????????????????? | | ????????????# ##?????????????????????? | | ????????????## ## ##??????????????????????? | | ?????????????## #####???????????????????????? | | ?????????????## ####????????????????????????? | | ?????????????# #????????????????????????? | | ?????????????# ##???????????????????????? | | ?????????????## ##??????????????????????? | | ??????????????##### #??????????????????????? | | ??????????????????# #??????????????????????? | | ?????????????????## ##??????????????????????? | | ?????????????##### ##???????????????????????? | | ????????????# ##????????????????????????? | | ????????????# ## #?????????????????????????? | | ????????????# #?# ##????????????????????????? | +----------------------------------------------------+ Best States ------------- Heat Dissipation 25 Energy Generation 10 Energy Capacity 125 Matter Stores 300 Matter Capacity 300 Sight Range 16 Robot Scan Range 14 Terrain Scan Density 10 Resistance: KI 35 Resistance: TH 35 Resistance: EX 35 Resistance: EM 35 Resistance: I 35 Resistance: S 35 Resistance: P 35 Core Shielding 20 Evasion (%) 55 Targeting Accuracy 5 Offensive Hacking 20 Item Schematics ----------------- None Robot Schematics ------------------ None Fabricated ------------ Nothing Repaired ---------- Nothing Studied --------- None Alien Tech Used ----------------- None Achievements -------------- Let's See Who's Tougher Unlikely Earthworm Challenges ------------ None Game ------ Seed SwarmLegMeganuke Manual? 0 Play Time 00:16:01 Cumulative 4.7 hours Start 2026.04.20 @ 13:37:41 End 2026.04.20 @ 13:50:36 Sessions 1 Manual Loads 0 Difficulty Explorer Special Mode None Game No. 8 Rogue 3 Adventurer 1 Explorer 4 Win Type - Total 0 Types 0/0/0/0/0/0/0/0/0/0 Lore% 14 Gallery% 9 Achievement% 11 Wizard Run 0 Options --------- Layout 1 ASCII 0 Keyboard 0 Movement Mouse Keybinds 0 Fullscreen 1 Font 24/Smallcaps Map View 50x35 Zoom Use 0% Tactical HUD 1 Map Filters NONE Filters NONE Steam 1 RUN: 99e229b6-c336-4bc3-97ad-5f1626d048e7